[Event "Schack-SM 2024: Sverigemastarklassen"]
[Site "Fortnox Arena, Hejaregatan 5, Vaxjo, Sweden"]
[Date "2024.07.04"]
[Round "6.4"]
[White "Ostlund, Joar"]
[Black "Lokander, Martin"]
[Result "1-0"]
[TimeControl "90 minutes for 40 moves + 30 minutes for the rest of the game + 30 seconds per move from move one."]
[WhiteTitle "FM"]
[BlackTitle "IM"]
[WhiteElo "2334"]
[BlackElo "2474"]

1. d4 {[%clk 01:30:57]} {[%emt 00:00:04]} Nf6 {[%clk 01:30:39]} {[%emt
00:00:22]} 2. Nf3 {[%clk 01:30:54]} {[%emt 00:00:33]} d5 {[%clk 01:30:02]}
{[%emt 00:01:06]} 3. Bf4 {[%clk 01:31:16]} {[%emt 00:00:08]} c5 {[%clk
01:29:53]} {[%emt 00:00:39]} 4. e3 {[%clk 01:31:40]} {[%emt 00:00:06]} Nc6
{[%clk 01:30:02]} {[%emt 00:00:21]} 5. Nbd2 {[%clk 01:32:05]} {[%emt 00:00:05]}
Nh5 {[%clk 01:29:54]} {[%emt 00:00:38]} 6. Be5 {[%clk 01:25:01]} {[%emt
00:07:35]} e6 {[%clk 01:29:52]} {[%emt 00:00:31]} 7. c3 {[%clk 01:23:57]}
{[%emt 00:01:34]} f6 {[%clk 01:24:35]} {[%emt 00:05:47]} 8. Bg3 {[%clk
01:23:40]} {[%emt 00:00:47]} Nxg3 {[%clk 01:21:47]} {[%emt 00:03:18]} 9. hxg3
{[%clk 01:24:01]} {[%emt 00:00:08]} g6 {[%clk 01:03:26]} {[%emt 00:18:51]} 10.
Bb5 {[%clk 01:12:06]} {[%emt 00:12:25]} Qb6 {[%clk 01:01:11]} {[%emt 00:02:46]}
11. a4 {[%clk 00:58:18]} {[%emt 00:14:18]} a6 {[%clk 00:53:56]} {[%emt
00:07:45]} 12. Bd3 {[%clk 00:56:37]} {[%emt 00:02:11]} f5 {[%clk 00:53:31]}
{[%emt 00:00:55]} 13. Qc2 {[%clk 00:51:44]} {[%emt 00:05:24]} c4 {[%clk
00:47:52]} {[%emt 00:06:09]} 14. Be2 {[%clk 00:51:54]} {[%emt 00:00:20]} Bg7
{[%clk 00:47:07]} {[%emt 00:01:14]} 15. b3 {[%clk 00:50:43]} {[%emt 00:01:42]}
cxb3 {[%clk 00:47:13]} {[%emt 00:00:24]} 16. Qxb3 {[%clk 00:40:17]} {[%emt
00:10:55]} Qd8 {[%clk 00:42:05]} {[%emt 00:05:38]} 17. O-O {[%clk 00:35:22]}
{[%emt 00:05:26]} O-O {[%clk 00:39:06]} {[%emt 00:03:28]} 18. c4 {[%clk
00:35:42]} {[%emt 00:00:12]} a5 {[%clk 00:38:40]} {[%emt 00:00:54]} 19. Rfc1
{[%clk 00:31:24]} {[%emt 00:04:48]} g5 {[%clk 00:34:11]} {[%emt 00:04:58]} 20.
Ne1 {[%clk 00:21:43]} {[%emt 00:10:12]} f4 {[%clk 00:33:29]} {[%emt 00:01:12]}
21. gxf4 {[%clk 00:18:18]} {[%emt 00:03:55]} gxf4 {[%clk 00:33:41]} {[%emt
00:00:18]} 22. Ndf3 {[%clk 00:17:22]} {[%emt 00:01:26]} fxe3 {[%clk 00:33:04]}
{[%emt 00:01:08]} 23. fxe3 {[%clk 00:14:59]} {[%emt 00:02:54]} Kh8 {[%clk
00:30:30]} {[%emt 00:03:03]} 24. Nd3 {[%clk 00:14:49]} {[%emt 00:00:40]} Bh6
{[%clk 00:30:07]} {[%emt 00:00:53]} 25. Nde5 {[%clk 00:09:50]} {[%emt
00:05:29]} Nb4 {[%clk 00:29:51]} {[%emt 00:00:46]} 26. Rf1 {[%clk 00:08:57]}
{[%emt 00:01:23]} b6 {[%clk 00:27:47]} {[%emt 00:02:34]} 27. Ng4 {[%clk
00:09:01]} {[%emt 00:00:27]} Bg7 {[%clk 00:27:17]} {[%emt 00:00:59]} 28. Nfe5
{[%clk 00:09:25]} {[%emt 00:00:07]} Ra7 {[%clk 00:27:14]} {[%emt 00:00:34]} 29.
Rxf8+ {[%clk 00:09:02]} {[%emt 00:00:53]} Qxf8 {[%clk 00:27:25]} {[%emt
00:00:16]} 30. Rf1 {[%clk 00:09:24]} {[%emt 00:00:08]} Qe8 {[%clk 00:26:46]}
{[%emt 00:01:10]} 31. Qb1 {[%clk 00:05:01]} {[%emt 00:04:53]} dxc4 {[%clk
00:25:41]} {[%emt 00:01:35]} 32. Bxc4 {[%clk 00:04:14]} {[%emt 00:01:18]} Rc7
{[%clk 00:24:12]} {[%emt 00:01:59]} 33. Nf6 {[%clk 00:03:46]} {[%emt 00:00:57]}
Bxf6 {[%clk 00:24:33]} {[%emt 00:00:10]} 34. Rxf6 {[%clk 00:04:12]} {[%emt
00:00:02]} Rg7 {[%clk 00:15:11]} {[%emt 00:09:53]} 35. Qf1 {[%clk 00:04:24]}
{[%emt 00:00:16]} Kg8 {[%clk 00:15:35]} {[%emt 00:00:06]} 36. Qf5 {[%clk
00:02:04]} {[%emt 00:02:50]} Nd5 {[%clk 00:14:27]} {[%emt 00:01:40]} 37. Bxd5
{[%clk 00:02:19]} {[%emt 00:00:15]} exd5 {[%clk 00:14:54]} {[%emt 00:00:03]} 38.
Qf3 {[%clk 00:02:16]} {[%emt 00:00:31]} Be6 {[%clk 00:14:42]} {[%emt 00:00:43]}
39. e4 {[%clk 00:00:32]} {[%emt 00:02:14]} dxe4 {[%clk 00:14:38]} {[%emt
00:00:35]} 40. Qxe4 {[%clk 00:00:48]} {[%emt 00:00:14]} h5 {[%clk 00:09:20]}
{[%emt 00:05:48]} 41. Rh6 {[%clk 00:19:51]} {[%emt 00:11:27]} Bf7 {[%clk
00:34:50]} {[%emt 00:05:00]} 42. Rxb6 {[%clk 00:19:27]} {[%emt 00:00:54]} Qd8
{[%clk 00:33:13]} {[%emt 00:02:07]} 43. Nxf7 {[%clk 00:14:35]} {[%emt
00:05:22]} Qxb6 {[%clk 00:33:05]} {[%emt 00:00:38]} 44. Qe8+ {[%clk 00:14:54]}
{[%emt 00:00:10]} Kh7 {[%clk 00:33:31]} {[%emt 00:00:05]} 45. Qh8+ {[%clk
00:15:18]} {[%emt 00:00:06]} 1-0

[Event "Schack-SM 2024: Sverigemastarklassen"]
[Site "Fortnox Arena, Hejaregatan 5, Vaxjo, Sweden"]
[Date "2024.07.04"]
[Round "6.5"]
[White "Hector, Jonny"]
[Black "Blomqvist, Erik"]
[Result "1/2-1/2"]
[TimeControl "90 minutes for 40 moves + 30 minutes for the rest of the game + 30 seconds per move from move one."]
[WhiteTitle "GM"]
[BlackTitle "GM"]
[WhiteElo "2410"]
[BlackElo "2527"]

1. e4 {[%clk 01:30:52]} {[%emt 00:00:07]} e5 {[%clk 01:30:53]} {[%emt
00:00:08]} 2. Nf3 {[%clk 01:31:14]} {[%emt 00:00:07]} Nc6 {[%clk 01:31:15]}
{[%emt 00:00:08]} 3. Bc4 {[%clk 01:31:34]} {[%emt 00:00:10]} Nf6 {[%clk
01:31:29]} {[%emt 00:00:17]} 4. d3 {[%clk 01:31:48]} {[%emt 00:00:15]} Bc5
{[%clk 01:31:25]} {[%emt 00:00:35]} 5. Be3 {[%clk 01:32:05]} {[%emt 00:00:13]}
Bxe3 {[%clk 01:26:35]} {[%emt 00:05:20]} 6. fxe3 {[%clk 01:32:29]} {[%emt
00:00:04]} d6 {[%clk 01:26:58]} {[%emt 00:00:08]} 7. a4 {[%clk 01:32:02]}
{[%emt 00:00:57]} Be6 {[%clk 01:25:30]} {[%emt 00:01:59]} 8. Bxe6 {[%clk
01:31:53]} {[%emt 00:00:39]} fxe6 {[%clk 01:25:51]} {[%emt 00:00:09]} 9. a5
{[%clk 01:31:53]} {[%emt 00:00:29]} a6 {[%clk 01:23:46]} {[%emt 00:02:36]} 10.
Nbd2 {[%clk 01:27:30]} {[%emt 00:04:52]} d5 {[%clk 01:22:14]} {[%emt 00:02:03]}
11. O-O {[%clk 01:22:59]} {[%emt 00:05:00]} Qd6 {[%clk 01:20:30]} {[%emt
00:02:14]} 12. Qe2 {[%clk 01:19:03]} {[%emt 00:04:27]} O-O {[%clk 01:19:51]}
{[%emt 00:01:09]} 13. Ra3 {[%clk 01:04:45]} {[%emt 00:14:49]} Rad8 {[%clk
01:18:00]} {[%emt 00:02:19]} 14. Rc1 {[%clk 00:59:34]} {[%emt 00:05:41]} Rd7
{[%clk 01:15:12]} {[%emt 00:03:18]} 15. c4 {[%clk 00:56:03]} {[%emt 00:04:00]}
dxe4 {[%clk 01:12:16]} {[%emt 00:03:27]} 16. dxe4 {[%clk 00:55:16]} {[%emt
00:01:16]} Qc5 {[%clk 01:09:38]} {[%emt 00:03:09]} 17. Ra4 {[%clk 00:48:33]}
{[%emt 00:07:13]} Rfd8 {[%clk 01:06:04]} {[%emt 00:04:04]} 18. b4 {[%clk
00:46:35]} {[%emt 00:02:28]} Nxb4 {[%clk 01:04:32]} {[%emt 00:02:01]} 19. Nb3
{[%clk 00:42:38]} {[%emt 00:04:28]} Qd6 {[%clk 01:02:25]} {[%emt 00:02:36]} 20.
c5 {[%clk 00:38:17]} {[%emt 00:04:53]} Qd3 {[%clk 01:02:45]} {[%emt 00:00:10]}
21. Qxd3 {[%clk 00:38:21]} {[%emt 00:00:25]} Nxd3 {[%clk 01:02:55]} {[%emt
00:00:19]} 22. Rc2 {[%clk 00:37:26]} {[%emt 00:01:25]} Ng4 {[%clk 01:00:52]}
{[%emt 00:02:33]} 23. Re2 {[%clk 00:35:22]} {[%emt 00:02:34]} Nb2 {[%clk
00:56:58]} {[%emt 00:04:24]} 24. Ra1 {[%clk 00:32:59]} {[%emt 00:02:54]} Rd1+
{[%clk 00:54:58]} {[%emt 00:02:28]} 25. Re1 {[%clk 00:32:54]} {[%emt 00:00:36]}
R1d3 {[%clk 00:48:35]} {[%emt 00:06:54]} 26. Nc1 {[%clk 00:31:25]} {[%emt
00:01:59]} Rc3 {[%clk 00:40:26]} {[%emt 00:08:37]} 27. Rb1 {[%clk 00:27:25]}
{[%emt 00:04:32]} Rc2 {[%clk 00:39:49]} {[%emt 00:01:07]} 28. h3 {[%clk
00:25:25]} {[%emt 00:02:30]} Nf6 {[%clk 00:39:11]} {[%emt 00:01:09]} 29. Nb3
{[%clk 00:22:56]} {[%emt 00:02:58]} Na4 {[%clk 00:27:09]} {[%emt 00:12:32]} 30.
Red1 {[%clk 00:12:31]} {[%emt 00:10:55]} Rxd1+ {[%clk 00:26:31]} {[%emt
00:01:08]} 31. Rxd1 {[%clk 00:12:57]} {[%emt 00:00:03]} Nxc5 {[%clk 00:26:10]}
{[%emt 00:00:50]} 32. Nxc5 {[%clk 00:13:12]} {[%emt 00:00:16]} Rxc5 {[%clk
00:26:08]} {[%emt 00:00:33]} 33. Ng5 {[%clk 00:13:32]} {[%emt 00:00:10]} Ne8
{[%clk 00:25:46]} {[%emt 00:00:52]} 34. Rd8 {[%clk 00:12:38]} {[%emt 00:01:24]}
Rc1+ {[%clk 00:25:58]} {[%emt 00:00:18]} 35. Kh2 {[%clk 00:11:53]} {[%emt
00:01:15]} Kf8 {[%clk 00:26:14]} {[%emt 00:00:15]} 36. Rd7 {[%clk 00:11:17]}
{[%emt 00:01:05]} Nd6 {[%clk 00:13:16]} {[%emt 00:13:27]} 37. Nxe6+ {[%clk
00:10:18]} {[%emt 00:01:30]} Ke8 {[%clk 00:13:41]} {[%emt 00:00:06]} 38. Rxg7
{[%clk 00:09:57]} {[%emt 00:00:51]} Nf7 {[%clk 00:12:58]} {[%emt 00:01:12]} 39.
Rxh7 {[%clk 00:06:34]} {[%emt 00:03:53]} b5 {[%clk 00:10:33]} {[%emt 00:02:56]}
40. axb6 {[%clk 00:05:34]} {[%emt 00:01:30]} cxb6 {[%clk 00:10:58]} {[%emt
00:00:04]} 41. g4 {[%clk 00:28:12]} {[%emt 00:07:52]} Rc6 {[%clk 00:39:45]}
{[%emt 00:01:43]} 42. Ng7+ {[%clk 00:27:15]} {[%emt 00:01:27]} Kf8 {[%clk
00:38:52]} {[%emt 00:01:23]} 43. Nf5 {[%clk 00:26:55]} {[%emt 00:00:52]} a5
{[%clk 00:24:11]} {[%emt 00:15:10]} 44. g5 {[%clk 00:19:52]} {[%emt 00:07:32]}
a4 {[%clk 00:16:31]} {[%emt 00:08:11]} 45. Rg7 {[%clk 00:17:14]} {[%emt
00:03:08]} Rc2+ {[%clk 00:08:30]} {[%emt 00:08:32]} 46. Kg3 {[%clk 00:11:27]}
{[%emt 00:06:15]} a3 {[%clk 00:05:58]} {[%emt 00:03:03]} 47. g6 {[%clk
00:11:50]} {[%emt 00:00:06]} Rc7 {[%clk 00:06:14]} {[%emt 00:00:14]} 48. Rh7
{[%clk 00:10:51]} {[%emt 00:01:29]} a2 {[%clk 00:05:38]} {[%emt 00:01:07]} 49.
gxf7 {[%clk 00:10:44]} {[%emt 00:00:37]} a1=Q {[%clk 00:05:27]} {[%emt
00:00:41]} 50. Rh8+ {[%clk 00:11:03]} {[%emt 00:00:10]} Kxf7 {[%clk 00:05:52]}
{[%emt 00:00:05]} 51. Rh7+ {[%clk 00:11:26]} {[%emt 00:00:08]} Ke6 {[%clk
00:03:34]} {[%emt 00:02:48]} 52. Rxc7 {[%clk 00:11:47]} {[%emt 00:00:08]} Qg1+
{[%clk 00:03:12]} {[%emt 00:00:52]} 53. Kh4 {[%clk 00:10:57]} {[%emt 00:01:21]}
Qf2+ {[%clk 00:03:34]} {[%emt 00:00:08]} 54. Kg4 {[%clk 00:09:50]} {[%emt
00:01:37]} Qe2+ {[%clk 00:01:45]} {[%emt 00:02:19]} 55. Kg3 {[%clk 00:09:33]}
{[%emt 00:00:46]} Qe1+ {[%clk 00:01:06]} {[%emt 00:01:09]} 56. Kg4 {[%clk
00:07:31]} {[%emt 00:02:32]} Qd1+ {[%clk 00:01:14]} {[%emt 00:00:22]} 57. Kg5
{[%clk 00:06:41]} {[%emt 00:01:20]} Qg1+ {[%clk 00:00:49]} {[%emt 00:00:55]} 58.
Kh6 {[%clk 00:06:41]} {[%emt 00:00:30]} b5 {[%clk 00:00:33]} {[%emt 00:00:47]}
59. Ng7+ {[%clk 00:06:02]} {[%emt 00:01:07]} Kd6 {[%clk 00:01:01]} {[%emt
00:00:04]} 60. Ne8+ {[%clk 00:06:19]} {[%emt 00:00:12]} Ke6 {[%clk 00:01:23]}
{[%emt 00:00:09]} 1/2-1/2

[Event "Schack-SM 2024: Sverigemastarklassen"]
[Site "Fortnox Arena, Hejaregatan 5, Vaxjo, Sweden"]
[Date "2024.07.03"]
[Round "5.4"]
[White "Pantzar, Milton"]
[Black "Blomqvist, Erik"]
[Result "0-1"]
[TimeControl "90 minutes for 40 moves + 30 minutes for the rest of the game + 30 seconds per move from move one."]
[WhiteTitle "IM"]
[BlackTitle "GM"]
[WhiteElo "2480"]
[BlackElo "2527"]

1. d4 {[%clk 01:30:56]} {[%emt 00:00:04]} d5 {[%clk 01:30:52]} {[%emt
00:00:08]} 2. Nf3 {[%clk 01:31:19]} {[%emt 00:00:07]} Nf6 {[%clk 01:31:15]}
{[%emt 00:00:12]} 3. e3 {[%clk 01:31:42]} {[%emt 00:00:03]} Bf5 {[%clk
01:30:14]} {[%emt 00:01:31]} 4. Bd3 {[%clk 01:31:33]} {[%emt 00:00:38]} e6
{[%clk 01:30:17]} {[%emt 00:00:28]} 5. Bxf5 {[%clk 01:26:47]} {[%emt 00:05:16]}
exf5 {[%clk 01:30:41]} {[%emt 00:00:05]} 6. Qd3 {[%clk 01:27:03]} {[%emt
00:00:13]} Qd7 {[%clk 01:30:37]} {[%emt 00:00:34]} 7. Ne5 {[%clk 01:23:37]}
{[%emt 00:03:56]} Qc8 {[%clk 01:30:11]} {[%emt 00:00:56]} 8. O-O {[%clk
01:21:09]} {[%emt 00:02:59]} Bd6 {[%clk 01:26:53]} {[%emt 00:03:49]} 9. b3
{[%clk 01:15:54]} {[%emt 00:05:45]} O-O {[%clk 01:23:59]} {[%emt 00:03:23]} 10.
Ba3 {[%clk 01:09:27]} {[%emt 00:06:59]} Bxa3 {[%clk 01:14:21]} {[%emt
00:10:06]} 11. Nxa3 {[%clk 01:09:49]} {[%emt 00:00:09]} c6 {[%clk 01:14:00]}
{[%emt 00:00:50]} 12. c4 {[%clk 01:08:55]} {[%emt 00:01:24]} Qe6 {[%clk
01:12:34]} {[%emt 00:01:55]} 13. b4 {[%clk 01:03:14]} {[%emt 00:06:12]} a6
{[%clk 01:01:48]} {[%emt 00:11:17]} 14. cxd5 {[%clk 00:52:13]} {[%emt
00:11:32]} cxd5 {[%clk 01:01:28]} {[%emt 00:00:50]} 15. Qb3 {[%clk 00:43:31]}
{[%emt 00:09:11]} Nc6 {[%clk 00:45:14]} {[%emt 00:16:44]} 16. Nd3 {[%clk
00:42:03]} {[%emt 00:01:59]} Qd6 {[%clk 00:42:53]} {[%emt 00:02:50]} 17. b5
{[%clk 00:34:56]} {[%emt 00:07:38]} Ng4 {[%clk 00:39:21]} {[%emt 00:04:01]} 18.
Nf4 {[%clk 00:24:58]} {[%emt 00:10:28]} Nxd4 {[%clk 00:39:23]} {[%emt
00:00:28]} 19. Qxd5 {[%clk 00:18:48]} {[%emt 00:06:40]} Ne2+ {[%clk 00:29:50]}
{[%emt 00:10:03]} 20. Kh1 {[%clk 00:19:13]} {[%emt 00:00:06]} Qh6 {[%clk
00:30:15]} {[%emt 00:00:05]} 21. Nh3 {[%clk 00:16:48]} {[%emt 00:02:54]} Qf6
{[%clk 00:29:12]} {[%emt 00:01:34]} 22. bxa6 {[%clk 00:13:09]} {[%emt
00:04:08]} Rxa6 {[%clk 00:27:09]} {[%emt 00:02:33]} 23. Nb5 {[%clk 00:12:57]}
{[%emt 00:00:43]} Rd8 {[%clk 00:20:21]} {[%emt 00:07:17]} 24. Qc4 {[%clk
00:08:20]} {[%emt 00:05:08]} Qe5 {[%clk 00:18:46]} {[%emt 00:02:03]} 25. g3
{[%clk 00:07:06]} {[%emt 00:01:44]} Rh6 {[%clk 00:15:52]} {[%emt 00:03:24]} 26.
Kg2 {[%clk 00:06:25]} {[%emt 00:01:12]} f4 {[%clk 00:10:45]} {[%emt 00:05:37]}
27. Qxe2 {[%clk 00:01:17]} {[%emt 00:05:39]} f3+ {[%clk 00:02:16]} {[%emt
00:08:59]} 28. Qxf3 {[%clk 00:01:25]} {[%emt 00:00:22]} Qh5 {[%clk 00:02:36]}
{[%emt 00:00:09]} 29. Kg1 {[%clk 00:00:54]} {[%emt 00:01:02]} Qxh3 {[%clk
00:02:39]} {[%emt 00:00:27]} 30. Qg2 {[%clk 00:00:32]} {[%emt 00:00:53]} Qxg2+
31. Kxg2 {[%clk 00:01:00]} Rd2 {[%clk 00:01:53]} {[%emt 00:00:27]} 32. Kg1
{[%clk 00:00:44]} {[%emt 00:00:46]} Rxh2 {[%clk 00:01:35]} {[%emt 00:00:48]} 33.
Rac1 {[%clk 00:00:44]} {[%emt 00:00:31]} h5 {[%clk 00:01:00]} {[%emt 00:01:04]}
34. Rc8+ {[%clk 00:00:48]} {[%emt 00:00:27]} Kh7 {[%clk 00:01:25]} {[%emt
00:00:05]} 35. Rc7 {[%clk 00:00:57]} {[%emt 00:00:21]} Rhxf2 {[%clk 00:00:54]}
{[%emt 00:00:59]} 36. Rxf2 {[%clk 00:01:24]} {[%emt 00:00:05]} Rxf2 {[%clk
00:01:16]} {[%emt 00:00:07]} 37. Rxb7 {[%clk 00:01:43]} {[%emt 00:00:10]} Rf3
{[%clk 00:00:38]} {[%emt 00:01:10]} 38. Kg2 {[%clk 00:01:29]} {[%emt 00:00:43]}
Rf2+ {[%clk 00:01:06]} {[%emt 00:00:01]} 39. Kg1 {[%clk 00:01:54]} {[%emt
00:00:06]} Kg6 {[%clk 00:01:08]} {[%emt 00:00:28]} 40. a4 {[%clk 00:01:03]}
{[%emt 00:01:20]} Ra2 {[%clk 00:00:39]} {[%emt 00:00:59]} 41. Nc3 {[%clk
00:22:03]} {[%emt 00:09:31]} Ra1+ {[%clk 00:29:06]} {[%emt 00:02:05]} 42. Kg2
{[%clk 00:16:25]} {[%emt 00:06:06]} Nxe3+ {[%clk 00:25:53]} {[%emt 00:03:43]}
43. Kf3 {[%clk 00:16:48]} {[%emt 00:00:09]} Nf5 {[%clk 00:24:56]} {[%emt
00:01:26]} 44. Rb4 {[%clk 00:08:21]} {[%emt 00:08:56]} Rf1+ {[%clk 00:21:27]}
{[%emt 00:03:58]} 45. Ke2 {[%clk 00:07:58]} {[%emt 00:00:55]} Nxg3+ {[%clk
00:21:41]} {[%emt 00:00:15]} 46. Kd3 {[%clk 00:08:16]} {[%emt 00:00:13]} Rf3+
{[%clk 00:12:52]} {[%emt 00:09:19]} 47. Kc2 {[%clk 00:04:21]} {[%emt 00:04:24]}
Rf5 {[%clk 00:13:09]} {[%emt 00:00:15]} 48. Nb5 {[%clk 00:03:15]} {[%emt
00:01:35]} Kg5 {[%clk 00:09:17]} {[%emt 00:04:23]} 49. a5 {[%clk 00:02:26]}
{[%emt 00:01:20]} Rf2+ {[%clk 00:07:25]} {[%emt 00:02:20]} 50. Kb3 {[%clk
00:01:43]} {[%emt 00:01:14]} h4 {[%clk 00:06:57]} {[%emt 00:00:57]} 51. a6
{[%clk 00:01:45]} {[%emt 00:00:28]} h3 {[%clk 00:07:14]} {[%emt 00:00:12]} 52.
a7 {[%clk 00:01:59]} {[%emt 00:00:16]} h2 {[%clk 00:07:29]} {[%emt 00:00:16]}
53. a8=Q {[%clk 00:02:18]} {[%emt 00:00:12]} h1=Q {[%clk 00:07:45]} {[%emt
00:00:13]} 54. Qd8+ {[%clk 00:02:18]} {[%emt 00:00:30]} f6 {[%clk 00:07:50]}
{[%emt 00:00:25]} 55. Nc3 {[%clk 00:02:17]} {[%emt 00:00:31]} Qe1 {[%clk
00:06:06]} {[%emt 00:02:14]} 56. Qd7 {[%clk 00:02:25]} {[%emt 00:00:23]} Kh6
{[%clk 00:04:38]} {[%emt 00:01:58]} 57. Rh4+ {[%clk 00:01:05]} {[%emt
00:01:50]} Nh5 {[%clk 00:05:01]} {[%emt 00:00:06]} 58. Qg4 {[%clk 00:01:05]}
{[%emt 00:00:31]} g6 {[%clk 00:04:32]} {[%emt 00:00:58]} 59. Qc4 {[%clk
00:00:47]} {[%emt 00:00:49]} Rf3 {[%clk 00:04:40]} {[%emt 00:00:21]} 60. Re4
{[%clk 00:00:35]} {[%emt 00:00:44]} Rxc3+ {[%clk 00:04:56]} {[%emt 00:00:14]}
0-1